{"text_format":"1","workbook":"xlsx","n_sheets":3,"sheets":["10％","8％","不課税"],"not_rendered":{"charts":0,"images":0,"macros":1,"external_links":0,"defined_names":0,"comments":0,"pivot_tables":0},"unopened":[],"bounds":{"document_bytes":16777216,"sheet_cells":100000,"rows_first":2000,"rows_last":500,"rows_between":2000,"halvings":0,"cell_chars":16384,"cell_head_chars":4096},"cells_cut":0,"cells_raw":0,"read":"whole","date_system":"1900"}

{"sheet":"10％","index":0,"n_rows":93,"n_cols":94,"rows_kept":93,"cut":false,"hidden":false,"merged":[[29,80,30,81],[68,66,69,70],[68,71,69,75],[25,87,26,90],[68,76,69,77],[68,78,69,79],[10,58,11,62],[10,63,11,64],[10,65,11,66],[10,67,11,68],[10,69,11,70],[10,71,11,72],[15,61,16,75],[15,76,16,81],[64,87,65,90],[66,87,67,90],[25,80,26,81],[27,66,28,70],[27,71,28,75],[29,78,30,79],[21,61,22,65],[21,66,22,70],[21,71,22,75],[21,76,22,77],[0,84,1,85],[0,68,1,69],[0,70,1,71],[15,82,15,90],[16,82,16,86],[16,87,16,90],[7,63,9,86],[63,82,63,86],[63,87,63,90],[10,85,11,86],[10,87,11,88],[10,89,11,90],[10,81,11,82],[10,83,11,84],[10,73,11,74],[10,75,11,76],[10,77,11,78],[10,79,11,80],[7,87,9,90],[47,84,48,85],[17,82,18,86],[17,87,18,90],[25,76,26,77],[25,78,26,79],[0,93,1,99],[2,5,2,99],[3,5,3,26],[3,27,3,99],[5,58,6,62],[5,63,6,90],[5,93,18,94],[0,72,1,73],[0,74,1,75],[0,76,1,77],[0,78,1,79],[0,80,1,81],[0,82,1,83],[0,1,1,29],[0,37,1,56],[0,64,1,65],[0,66,1,67],[11,1,11,8],[11,10,11,19],[11,21,11,30],[11,32,11,43],[11,45,11,56],[5,95,18,99],[7,58,9,62],[12,18,13,19],[12,21,13,22],[12,23,13,24],[12,25,13,26],[12,1,13,2],[12,3,13,4],[12,5,13,6],[12,7,13,8],[12,10,13,11],[12,12,13,13],[12,53,13,54],[12,55,13,56],[12,58,13,62],[12,63,13,90],[15,1,16,24],[15,25,16,29],[15,30,16,34],[15,35,16,40],[15,41,16,52],[15,53,16,60],[12,40,13,41],[12,42,13,43],[12,45,13,46],[12,47,13,48],[12,49,13,50],[12,51,13,52],[12,27,13,28],[12,29,13,30],[12,32,13,33],[12,34,13,35],[12,36,13,37],[12,38,13,39],[12,14,13,15],[12,16,13,17],[17,76,18,77],[17,78,18,79],[17,80,18,81],[17,53,18,54],[17,55,18,56],[17,57,18,58],[17,59,18,60],[17,61,18,65],[17,66,18,70],[19,66,20,70],[19,71,20,75],[19,1,20,24],[19,25,20,29],[19,30,20,34],[19,35,20,40],[19,41,20,52],[19,53,20,54],[17,1,18,24],[17,25,18,29],[17,30,18,34],[17,35,18,40],[17,41,18,52],[17,71,18,75],[21,78,22,79],[21,80,22,81],[19,95,22,99],[21,1,22,24],[21,25,22,29],[21,30,22,34],[21,35,22,40],[21,41,22,52],[21,53,22,54],[21,55,22,56],[21,57,22,58],[21,59,22,60],[19,76,20,77],[19,78,20,79],[19,80,20,81],[19,82,20,86],[19,87,20,90],[19,93,22,94],[21,82,22,86],[21,87,22,90],[19,55,20,56],[19,57,20,58],[19,59,20,60],[19,61,20,65],[23,55,24,56],[23,57,24,58],[23,59,24,60],[23,61,24,65],[23,66,24,70],[23,71,24,75],[23,1,24,24],[23,25,24,29],[23,30,24,34],[23,35,24,40],[23,41,24,52],[23,53,24,54],[27,30,28,34],[27,35,28,40],[27,41,28,52],[27,53,28,54],[25,61,26,65],[25,66,26,70],[25,71,26,75],[23,95,26,99],[25,1,26,24],[25,25,26,29],[25,30,26,34],[25,35,26,40],[25,41,26,52],[25,53,26,54],[25,55,26,56],[25,57,26,58],[25,59,26,60],[23,76,24,77],[23,78,24,79],[23,80,24,81],[23,82,24,86],[23,87,24,90],[23,93,26,94],[25,82,26,86],[27,95,30,99],[29,1,30,24],[29,25,30,29],[29,30,30,34],[29,35,30,40],[29,41,30,52],[29,53,30,54],[29,55,30,56],[29,57,30,58],[29,59,30,60],[27,76,28,77],[27,78,28,79],[27,80,28,81],[27,82,28,86],[27,87,28,90],[27,93,30,94],[29,82,30,86],[29,87,30,90],[27,55,28,56],[27,57,28,58],[27,59,28,60],[27,61,28,65],[27,1,28,24],[27,25,28,29],[31,25,32,29],[31,30,32,34],[31,35,32,40],[31,41,32,52],[31,53,32,54],[29,61,30,65],[29,66,30,70],[29,71,30,75],[29,76,30,77],[31,95,34,99],[33,1,35,24],[33,25,35,29],[33,30,35,34],[33,35,35,40],[33,41,35,52],[33,53,34,60],[33,61,34,65],[33,66,34,70],[33,71,34,75],[31,76,32,77],[31,78,32,79],[31,80,32,81],[31,82,32,83],[31,84,32,90],[31,93,34,94],[34,77,34,81],[31,55,32,56],[31,57,32,58],[31,59,32,60],[31,61,32,65],[31,66,32,70],[31,71,32,75],[31,1,32,24],[35,95,38,99],[36,1,38,24],[36,25,38,29],[36,30,38,34],[36,35,38,40],[36,41,38,52],[36,77,36,81],[37,53,38,60],[37,61,38,65],[37,66,38,70],[35,53,36,60],[35,61,36,65],[35,66,36,70],[35,71,36,75],[35,77,35,81],[35,93,38,94],[37,71,38,75],[37,77,37,83],[39,61,40,65],[39,66,40,70],[39,71,40,75],[41,53,42,60],[41,61,42,65],[41,66,42,70],[41,71,42,75],[39,1,41,24],[39,25,41,29],[39,30,41,34],[39,35,41,40],[39,41,41,52],[39,53,40,60],[47,93,48,99],[49,5,49,99],[50,5,50,26],[50,27,50,99],[52,58,53,62],[52,63,53,90],[52,93,65,94],[47,72,48,73],[47,74,48,75],[47,76,48,77],[47,78,48,79],[47,80,48,81],[47,82,48,83],[47,1,48,29],[47,37,48,56],[47,64,48,65],[47,66,48,67],[47,68,48,69],[47,70,48,71],[52,95,65,99],[59,16,60,17],[59,18,60,19],[58,32,58,43],[58,45,58,56],[59,29,60,30],[64,53,65,54],[59,1,60,2],[59,21,60,22],[59,23,60,24],[59,25,60,26],[59,27,60,28],[59,3,60,4],[59,5,60,6],[59,7,60,8],[59,10,60,11],[59,12,60,13],[59,14,60,15],[62,1,63,24],[62,25,63,29],[62,30,63,34],[62,35,63,40],[62,41,63,52],[59,32,60,33],[59,34,60,35],[59,36,60,37],[59,38,60,39],[59,40,60,41],[59,42,60,43],[64,55,65,56],[64,57,65,58],[64,59,65,60],[64,61,65,65],[59,58,60,62],[59,63,60,90],[62,76,63,81],[62,82,62,90],[59,55,60,56],[64,76,65,77],[64,78,65,79],[64,80,65,81],[64,66,65,70],[64,71,65,75],[59,45,60,46],[59,47,60,48],[59,49,60,50],[59,51,60,52],[59,53,60,54],[64,82,65,86],[62,53,63,60],[62,61,63,75],[66,1,67,24],[66,25,67,29],[66,30,67,34],[66,35,67,40],[66,41,67,52],[66,53,67,54],[66,55,67,56],[66,57,67,58],[66,59,67,60],[66,61,67,65],[66,66,67,70],[64,1,65,24],[64,25,65,29],[64,30,65,34],[64,35,65,40],[64,41,65,52],[72,55,73,56],[72,57,73,58],[72,59,73,60],[72,61,73,65],[66,93,69,94],[66,95,69,99],[66,71,67,75],[66,76,67,77],[66,78,67,79],[66,80,67,81],[70,93,73,94],[70,95,73,99],[68,80,69,81],[66,82,67,86],[70,82,71,86],[72,82,73,86],[68,87,69,90],[70,87,71,90],[72,87,73,90],[68,82,69,86],[68,1,69,24],[68,25,69,29],[68,30,69,34],[68,35,69,40],[68,41,69,52],[68,53,69,54],[68,55,69,56],[68,57,69,58],[70,66,71,70],[70,1,71,24],[70,25,71,29],[70,30,71,34],[70,35,71,40],[70,41,71,52],[70,53,71,54],[70,55,71,56],[70,57,71,58],[70,59,71,60],[70,61,71,65],[72,1,73,24],[72,25,73,29],[72,30,73,34],[72,35,73,40],[72,41,73,52],[72,53,73,54],[74,95,77,99],[76,1,77,24],[76,25,77,29],[76,30,77,34],[76,35,77,40],[76,41,77,52],[76,53,77,54],[76,55,77,56],[76,57,77,58],[74,71,75,75],[74,76,75,77],[74,78,75,79],[74,80,75,81],[74,53,75,54],[74,55,75,56],[74,57,75,58],[74,59,75,60],[74,1,75,24],[74,93,77,94],[74,30,75,34],[74,35,75,40],[74,41,75,52],[74,87,75,90],[74,82,75,86],[76,82,77,86],[76,87,77,90],[76,80,77,81],[74,66,75,70],[74,25,75,29],[76,66,77,70],[76,71,77,75],[76,76,77,77],[76,78,77,79],[78,78,79,79],[78,80,79,81],[78,95,81,99],[78,57,79,58],[78,59,79,60],[78,61,79,65],[78,66,79,70],[78,71,79,75],[78,76,79,77],[80,61,81,65],[80,66,81,70],[80,71,81,75],[81,77,81,81],[78,82,79,83],[78,84,79,90],[78,93,81,94],[78,30,79,34],[78,35,79,40],[78,41,79,52],[78,1,79,24],[78,25,79,29],[86,1,88,24],[86,25,88,29],[86,30,88,34],[86,35,88,40],[86,41,88,52],[86,53,87,60],[86,61,87,65],[82,53,83,60],[82,61,83,65],[78,53,79,54],[78,55,79,56],[82,93,85,94],[82,95,85,99],[83,1,85,24],[83,25,85,29],[83,30,85,34],[83,35,85,40],[83,41,85,52],[83,77,83,81],[84,53,85,60],[84,61,85,65],[80,1,82,24],[80,25,82,29],[80,30,82,34],[80,35,82,40],[80,41,82,52],[84,66,85,70],[84,71,85,75],[84,77,84,83],[57,81,58,82],[57,83,58,84],[57,85,58,86],[57,87,58,88],[86,66,87,70],[86,71,87,75],[88,53,89,60],[88,61,89,65],[88,66,89,70],[88,71,89,75],[76,59,77,60],[76,61,77,65],[74,61,75,65],[68,59,69,60],[68,61,69,65],[70,71,71,75],[70,76,71,77],[72,76,73,77],[72,78,73,79],[72,80,73,81],[72,66,73,70],[72,71,73,75],[70,78,71,79],[70,80,71,81],[57,89,58,90],[58,1,58,8],[58,10,58,19],[58,21,58,30],[82,66,83,70],[82,71,83,75],[82,77,82,81],[80,53,81,60],[5,1,8,9],[5,10,8,56],[52,1,55,9],[52,10,55,56],[54,58,56,62],[57,58,58,62],[54,63,56,90],[57,63,58,64],[57,65,58,66],[57,67,58,68],[57,69,58,70],[57,71,58,72],[57,73,58,74],[57,75,58,76],[57,77,58,78],[57,79,58,80]]}
[null,"　　古久根建設株式会社　御中",null,null,null,null,null,null,null,null,null,null,null,null,null,null,null,null,null,null,null,null,null,null,null,null,null,null,null,null,null,null,null,null,null,null,null,"請　　求　　書",null,null,null,null,null,null,null,null,null,null,null,null,null,null,null,null,null,null,null,null,null,null,null,null,null,null,2,null,0,null,null,null,null,null,"年",null,null,null,null,null,"月",null,null,null,null,null,"日",null,null,null,null,null,null,null,null,"（正）"]
[]
[]
[null,null,null,null,null,"下記の通り請求致します。"]
[]
[null,"工事名\n部署名",null,null,null,null,null,null,null,null,null,null,null,null,null,null,null,null,null,null,null,null,null,null,null,null,null,null,null,null,null,null,null,null,null,null,null,null,null,null,null,null,null,null,null,null,null,null,null,null,null,null,null,null,null,null,null,null,"住所",null,null,null,null,null,null,null,null,null,null,null,null,null,null,null,null,null,null,null,null,null,null,null,null,null,null,null,null,null,null,null,null,null,null,"役\n\n員"]
[]
[null,null,null,null,null,null,null,null,null,null,null,null,null,null,null,null,null,null,null,null,null,null,null,null,null,null,null,null,null,null,null,null,null,null,null,null,null,null,null,null,null,null,null,null,null,null,null,null,null,null,null,null,null,null,null,null,null,null,"社名"]
[]
[]
[null,null,null,null,null,null,null,null,null,null,null,null,null,null,null,null,null,null,null,null,null,null,null,null,null,null,null,null,null,null,null,null,null,null,null,null,null,null,null,null,null,null,null,null,null,null,null,null,null,null,null,null,null,null,null,null,null,null,"登録番号",null,null,null,null,"T"]
[null,"勘定科目ｺｰﾄﾞ",null,null,null,null,null,null,null,null,"工事・部署ｺｰﾄﾞ",null,null,null,null,null,null,null,null,null,null,"工事枝番号",null,null,null,null,null,null,null,null,null,null,"取引先ｺｰﾄﾞ",null,null,null,null,null,null,null,null,null,null,null,null,"注文番号"]
[null,null,null,null,null,null,null,null,null,null,null,null,null,null,null,null,null,null,null,null,null,null,null,null,null,null,null,null,null,null,null,null,null,null,null,null,null,null,null,null,null,null,null,null,null,null,null,null,null,null,null,null,null,null,null,null,null,null,"TEL"]
[]
[]
[null,"内容\n（品質・形状・寸法）",null,null,null,null,null,null,null,null,null,null,null,null,null,null,null,null,null,null,null,null,null,null,null,"数量",null,null,null,null,"単位",null,null,null,null,"単価",null,null,null,null,null,"請求金額",null,null,null,null,null,null,null,null,null,null,null,"費目コード",null,null,null,null,null,null,null,"金額",null,null,null,null,null,null,null,null,null,null,null,null,null,null,"原価コード",null,null,null,null,null,"課税区分"]
[null,null,null,null,null,null,null,null,null,null,null,null,null,null,null,null,null,null,null,null,null,null,null,null,null,null,null,null,null,null,null,null,null,null,null,null,null,null,null,null,null,null,null,null,null,null,null,null,null,null,null,null,null,null,null,null,null,null,null,null,null,null,null,null,null,null,null,null,null,null,null,null,null,null,null,null,null,null,null,null,null,null,"①",null,null,null,null,"②"]
[]
[]
[null,null,null,null,null,null,null,null,null,null,null,null,null,null,null,null,null,null,null,null,null,null,null,null,null,null,null,null,null,null,null,null,null,null,null,null,null,null,null,null,null,null,null,null,null,null,null,null,null,null,null,null,null,null,null,null,null,null,null,null,null,null,null,null,null,null,null,null,null,null,null,null,null,null,null,null,null,null,null,null,null,null,null,null,null,null,null,null,null,null,null,null,null,"部\n\n長"]
[]
[]
[]
[null,null,null,null,null,null,null,null,null,null,null,null,null,null,null,null,null,null,null,null,null,null,null,null,null,null,null,null,null,null,null,null,null,null,null,null,null,null,null,null,null,null,null,null,null,null,null,null,null,null,null,null,null,null,null,null,null,null,null,null,null,null,null,null,null,null,null,null,null,null,null,null,null,null,null,null,null,null,null,null,null,null,null,null,null,null,null,null,null,null,null,null,null,"次\n\n長"]
[]
[]
[]
[null,null,null,null,null,null,null,null,null,null,null,null,null,null,null,null,null,null,null,null,null,null,null,null,null,null,null,null,null,null,null,null,null,null,null,null,null,null,null,null,null,null,null,null,null,null,null,null,null,null,null,null,null,null,null,null,null,null,null,null,null,null,null,null,null,null,null,null,null,null,null,null,null,null,null,null,null,null,null,null,null,null,null,null,null,null,null,null,null,null,null,null,null,"課\n\n長"]
[]
[]
[]
[null,null,null,null,null,null,null,null,null,null,null,null,null,null,null,null,null,null,null,null,null,null,null,null,null,null,null,null,null,null,null,null,null,null,null,null,null,null,null,null,null,null,null,null,null,null,null,null,null,null,null,null,null,9,null,9,null,0,null,0,null,null,null,null,null,null,null,null,null,null,null,null,null,null,null,null,null,null,null,null,null,null,null,null,null,null,null,null,null,null,null,null,null,"所\n\n長"]
[]
[null,"工　事　費　計",null,null,null,null,null,null,null,null,null,null,null,null,null,null,null,null,null,null,null,null,null,null,null,null,null,null,null,null,null,null,null,null,null,null,null,null,null,null,null,{"$f":"SUM(AP18:BA33)","v":0},null,null,null,null,null,null,null,null,null,null,null,"合　　計"]
[null,null,null,null,null,null,null,null,null,null,null,null,null,null,null,null,null,null,null,null,null,null,null,null,null,null,null,null,null,null,null,null,null,null,null,null,null,null,null,null,null,null,null,null,null,null,null,null,null,null,null,null,null,null,null,null,null,null,null,null,null,null,null,null,null,null,null,null,null,null,null,null,null,null,null,null,null,"材　100"]
[null,null,null,null,null,null,null,null,null,null,null,null,null,null,null,null,null,null,null,null,null,null,null,null,null,null,null,null,null,null,null,null,null,null,null,null,null,null,null,null,null,null,null,null,null,null,null,null,null,null,null,null,null,"契　約　額",null,null,null,null,null,null,null,null,null,null,null,null,null,null,null,null,null,null,null,null,null,null,null,"労　200",null,null,null,null,null,null,null,null,null,null,null,null,null,null,null,"係\n\n員"]
[null,"消　　費　　税",null,null,null,null,null,null,null,null,null,null,null,null,null,null,null,null,null,null,null,null,null,null,null,null,null,null,null,null,null,null,null,null,null,"10%",null,null,null,null,null,{"$f":"INT(AP34*0.1)","v":0},null,null,null,null,null,null,null,null,null,null,null,null,null,null,null,null,null,null,null,null,null,null,null,null,null,null,null,null,null,null,null,null,null,null,null,"外　300"]
[null,null,null,null,null,null,null,null,null,null,null,null,null,null,null,null,null,null,null,null,null,null,null,null,null,null,null,null,null,null,null,null,null,null,null,null,null,null,null,null,null,null,null,null,null,null,null,null,null,null,null,null,null,"既　支　払　額",null,null,null,null,null,null,null,null,null,null,null,null,null,null,null,null,null,null,null,null,null,null,null," 経　401-427"]
[]
[null,"合　　　　　　計",null,null,null,null,null,null,null,null,null,null,null,null,null,null,null,null,null,null,null,null,null,null,null,null,null,null,null,null,null,null,null,null,null,null,null,null,null,null,null,{"$f":"SUM(AP34:BA39)","v":0},null,null,null,null,null,null,null,null,null,null,null,"今 回 支 払 額"]
[]
[null,null,null,null,null,null,null,null,null,null,null,null,null,null,null,null,null,null,null,null,null,null,null,null,null,null,null,null,null,null,null,null,null,null,null,null,null,null,null,null,null,null,null,null,null,null,null,null,null,null,null,null,null,"契　約　残　額"]
[]
[null,null,null,null,null,"※課税仕入　9900に消費税額を必ず記入　課税区分①②は無記入"]
[null,null,null,null,null,"※非課税、不課税仕入　9900に消費税額0と記入　課税区分①のみ1と記入"]
[null,null,null,null,null,"※太線内に記入し、捺印のうえ提出願います。"]
[]
[null,"　　古久根建設株式会社　御中",null,null,null,null,null,null,null,null,null,null,null,null,null,null,null,null,null,null,null,null,null,null,null,null,null,null,null,null,null,null,null,null,null,null,null,"請　　求　　書",null,null,null,null,null,null,null,null,null,null,null,null,null,null,null,null,null,null,null,null,null,null,null,null,null,null,2,null,0,null,{"$f":"BQ1","v":0},null,{"$f":"BS1&\"\"","v":""},null,"年",null,{"$f":"BW1&\"\"","v":""},null,{"$f":"BY1&\"\"","v":""},null,"月",null,{"$f":"CC1&\"\"","v":""},null,{"$f":"CE1&\"\"","v":""},null,"日",null,null,null,null,null,null,null,null,"（控）"]
[]
[]
[null,null,null,null,null,"下記の通り請求致します。"]
[]
[null,"工事名\n部署名",null,null,null,null,null,null,null,null,{"$f":"K6","v":0},null,null,null,null,null,null,null,null,null,null,null,null,null,null,null,null,null,null,null,null,null,null,null,null,null,null,null,null,null,null,null,null,null,null,null,null,null,null,null,null,null,null,null,null,null,null,null,"住所",null,null,null,null,{"$f":"BL6","v":0},null,null,null,null,null,null,null,null,null,null,null,null,null,null,null,null,null,null,null,null,null,null,null,null,null,null,null,null,null,"役\n\n員"]
[]
[null,null,null,null,null,null,null,null,null,null,null,null,null,null,null,null,null,null,null,null,null,null,null,null,null,null,null,null,null,null,null,null,null,null,null,null,null,null,null,null,null,null,null,null,null,null,null,null,null,null,null,null,null,null,null,null,null,null,"社名",null,null,null,null,{"$f":"BL8","v":0}]
[]
[]
[null,null,null,null,null,null,null,null,null,null,null,null,null,null,null,null,null,null,null,null,null,null,null,null,null,null,null,null,null,null,null,null,null,null,null,null,null,null,null,null,null,null,null,null,null,null,null,null,null,null,null,null,null,null,null,null,null,null,"登録番号",null,null,null,null,"T",null,{"$f":"BN11&\"\"","v":""},null,{"$f":"BP11&\"\"","v":""},null,{"$f":"BR11&\"\"","v":""},null,{"$f":"BT11&\"\"","v":""},null,{"$f":"BV11&\"\"","v":""},null,{"$f":"BX11&\"\"","v":""},null,{"$f":"BZ11&\"\"","v":""},null,{"$f":"CB11&\"\"","v":""},null,{"$f":"CD11&\"\"","v":""},null,{"$f":"CF11&\"\"","v":""},null,{"$f":"CH11&\"\"","v":""},null,{"$f":"CJ11&\"\"","v":""},null,{"$f":"CL11&\"\"","v":""}]
[null,"勘定科目ｺｰﾄﾞ",null,null,null,null,null,null,null,null,"工事・部署ｺｰﾄﾞ",null,null,null,null,null,null,null,null,null,null,"工事枝番号",null,null,null,null,null,null,null,null,null,null,"取引先ｺｰﾄﾞ",null,null,null,null,null,null,null,null,null,null,null,null,"注文番号"]
[null,null,null,null,null,null,null,null,null,null,null,null,null,null,null,null,null,null,null,null,null,null,null,null,null,null,null,null,null,null,null,null,{"$f":"AG13&\"\"","v":""},null,{"$f":"AI13&\"\"","v":""},null,{"$f":"AK13&\"\"","v":""},null,{"$f":"AM13&\"\"","v":""},null,{"$f":"AO13&\"\"","v":""},null,{"$f":"AQ13&\"\"","v":""},null,null,{"$f":"AT13&\"\"","v":""},null,{"$f":"AV13&\"\"","v":""},null,{"$f":"AX13&\"\"","v":""},null,{"$f":"AZ13&\"\"","v":""},null,{"$f":"BB13&\"\"","v":""},null,{"$f":"BD13&\"\"","v":""},null,null,"TEL",null,null,null,null,{"$f":"BL13","v":0}]
[]
[]
[null,"内容\n（品質・形状・寸法）",null,null,null,null,null,null,null,null,null,null,null,null,null,null,null,null,null,null,null,null,null,null,null,"数量",null,null,null,null,"単位",null,null,null,null,"単価",null,null,null,null,null,"請求金額",null,null,null,null,null,null,null,null,null,null,null,"費目コード",null,null,null,null,null,null,null,"金額",null,null,null,null,null,null,null,null,null,null,null,null,null,null,"原価コード",null,null,null,null,null,"課税区分"]
[null,null,null,null,null,null,null,null,null,null,null,null,null,null,null,null,null,null,null,null,null,null,null,null,null,null,null,null,null,null,null,null,null,null,null,null,null,null,null,null,null,null,null,null,null,null,null,null,null,null,null,null,null,null,null,null,null,null,null,null,null,null,null,null,null,null,null,null,null,null,null,null,null,null,null,null,null,null,null,null,null,null,"①",null,null,null,null,"②"]
[null,{"$f":"B18","v":0},null,null,null,null,null,null,null,null,null,null,null,null,null,null,null,null,null,null,null,null,null,null,null,{"$f":"Z18","v":0},null,null,null,null,{"$f":"AE18&\"\"","v":""},null,null,null,null,{"$f":"AJ18","v":0},null,null,null,null,null,{"$f":"AP18","v":0}]
[]
[null,{"$f":"B20","v":0},null,null,null,null,null,null,null,null,null,null,null,null,null,null,null,null,null,null,null,null,null,null,null,{"$f":"Z20","v":0},null,null,null,null,{"$f":"AE20&\"\"","v":""},null,null,null,null,{"$f":"AJ20","v":0},null,null,null,null,null,{"$f":"AP20","v":0},null,null,null,null,null,null,null,null,null,null,null,null,null,null,null,null,null,null,null,null,null,null,null,null,null,null,null,null,null,null,null,null,null,null,null,null,null,null,null,null,null,null,null,null,null,null,null,null,null,null,null,"部\n\n長"]
[]
[null,{"$f":"B22","v":0},null,null,null,null,null,null,null,null,null,null,null,null,null,null,null,null,null,null,null,null,null,null,null,{"$f":"Z22","v":0},null,null,null,null,{"$f":"AE22&\"\"","v":""},null,null,null,null,{"$f":"AJ22","v":0},null,null,null,null,null,{"$f":"AP22","v":0}]
[]
[null,{"$f":"B24","v":0},null,null,null,null,null,null,null,null,null,null,null,null,null,null,null,null,null,null,null,null,null,null,null,{"$f":"Z24","v":0},null,null,null,null,{"$f":"AE24&\"\"","v":""},null,null,null,null,{"$f":"AJ24","v":0},null,null,null,null,null,{"$f":"AP24","v":0},null,null,null,null,null,null,null,null,null,null,null,null,null,null,null,null,null,null,null,null,null,null,null,null,null,null,null,null,null,null,null,null,null,null,null,null,null,null,null,null,null,null,null,null,null,null,null,null,null,null,null,"次\n\n長"]
[]
[null,{"$f":"B26","v":0},null,null,null,null,null,null,null,null,null,null,null,null,null,null,null,null,null,null,null,null,null,null,null,{"$f":"Z26","v":0},null,null,null,null,{"$f":"AE26&\"\"","v":""},null,null,null,null,{"$f":"AJ26","v":0},null,null,null,null,null,{"$f":"AP26","v":0}]
[]
[null,{"$f":"B28","v":0},null,null,null,null,null,null,null,null,null,null,null,null,null,null,null,null,null,null,null,null,null,null,null,{"$f":"Z28","v":0},null,null,null,null,{"$f":"AE28&\"\"","v":""},null,null,null,null,{"$f":"AJ28","v":0},null,null,null,null,null,{"$f":"AP28","v":0},null,null,null,null,null,null,null,null,null,null,null,null,null,null,null,null,null,null,null,null,null,null,null,null,null,null,null,null,null,null,null,null,null,null,null,null,null,null,null,null,null,null,null,null,null,null,null,null,null,null,null,"課\n\n長"]
[]
[null,{"$f":"B30","v":0},null,null,null,null,null,null,null,null,null,null,null,null,null,null,null,null,null,null,null,null,null,null,null,{"$f":"Z30","v":0},null,null,null,null,{"$f":"AE30&\"\"","v":""},null,null,null,null,{"$f":"AJ30","v":0},null,null,null,null,null,{"$f":"AP30","v":0}]
[]
[null,{"$f":"B32","v":0},null,null,null,null,null,null,null,null,null,null,null,null,null,null,null,null,null,null,null,null,null,null,null,{"$f":"Z32","v":0},null,null,null,null,{"$f":"AE32&\"\"","v":""},null,null,null,null,{"$f":"AJ32","v":0},null,null,null,null,null,{"$f":"AP32","v":0},null,null,null,null,null,null,null,null,null,null,null,9,null,9,null,0,null,0,null,null,null,null,null,null,null,null,null,null,null,null,null,null,null,null,null,null,null,null,null,null,null,null,null,null,null,null,null,null,null,null,null,"所\n\n長"]
[]
[null,"工　事　費　計",null,null,null,null,null,null,null,null,null,null,null,null,null,null,null,null,null,null,null,null,null,null,null,null,null,null,null,null,null,null,null,null,null,null,null,null,null,null,null,{"$f":"AP34","v":0},null,null,null,null,null,null,null,null,null,null,null,"合　　計"]
[null,null,null,null,null,null,null,null,null,null,null,null,null,null,null,null,null,null,null,null,null,null,null,null,null,null,null,null,null,null,null,null,null,null,null,null,null,null,null,null,null,null,null,null,null,null,null,null,null,null,null,null,null,null,null,null,null,null,null,null,null,null,null,null,null,null,null,null,null,null,null,null,null,null,null,null,null,"材　100"]
[null,null,null,null,null,null,null,null,null,null,null,null,null,null,null,null,null,null,null,null,null,null,null,null,null,null,null,null,null,null,null,null,null,null,null,null,null,null,null,null,null,null,null,null,null,null,null,null,null,null,null,null,null,"契　約　額",null,null,null,null,null,null,null,null,null,null,null,null,null,null,null,null,null,null,null,null,null,null,null,"労　200",null,null,null,null,null,null,null,null,null,null,null,null,null,null,null,"係\n\n員"]
[null,"消　　費　　税",null,null,null,null,null,null,null,null,null,null,null,null,null,null,null,null,null,null,null,null,null,null,null,null,null,null,null,null,null,null,null,null,null,{"$f":"AJ37","v":"10%"},null,null,null,null,null,{"$f":"AP37","v":0},null,null,null,null,null,null,null,null,null,null,null,null,null,null,null,null,null,null,null,null,null,null,null,null,null,null,null,null,null,null,null,null,null,null,null,"外　300"]
[null,null,null,null,null,null,null,null,null,null,null,null,null,null,null,null,null,null,null,null,null,null,null,null,null,null,null,null,null,null,null,null,null,null,null,null,null,null,null,null,null,null,null,null,null,null,null,null,null,null,null,null,null,"既　支　払　額",null,null,null,null,null,null,null,null,null,null,null,null,null,null,null,null,null,null,null,null,null,null,null," 経　401-427"]
[]
[null,"合　　　　　　計",null,null,null,null,null,null,null,null,null,null,null,null,null,null,null,null,null,null,null,null,null,null,null,null,null,null,null,null,null,null,null,null,null,null,null,null,null,null,null,{"$f":"AP40","v":0},null,null,null,null,null,null,null,null,null,null,null,"今 回 支 払 額"]
[]
[null,null,null,null,null,null,null,null,null,null,null,null,null,null,null,null,null,null,null,null,null,null,null,null,null,null,null,null,null,null,null,null,null,null,null,null,null,null,null,null,null,null,null,null,null,null,null,null,null,null,null,null,null,"契　約　残　額"]
[]
[null,null,null,null,null,"※課税仕入　9900に消費税額を必ず記入　課税区分①②は無記入"]
[null,null,null,null,null,"※非課税、不課税仕入　9900に消費税額0と記入　課税区分①のみ1と記入"]
[null,null,null,null,null,"※太線内に記入し、捺印のうえ提出願います。"]

{"sheet":"8％","index":1,"n_rows":93,"n_cols":94,"rows_kept":93,"cut":false,"hidden":false,"merged":[[86,61,87,65],[86,66,87,70],[86,71,87,75],[88,53,89,60],[88,61,89,65],[88,66,89,70],[88,71,89,75],[86,1,88,24],[86,25,88,29],[86,30,88,34],[86,35,88,40],[86,41,88,52],[86,53,87,60],[82,95,85,99],[83,1,85,24],[83,25,85,29],[83,30,85,34],[83,35,85,40],[83,41,85,52],[83,77,83,81],[84,53,85,60],[84,61,85,65],[84,66,85,70],[82,53,83,60],[82,61,83,65],[82,66,83,70],[82,71,83,75],[82,77,82,81],[82,93,85,94],[84,71,85,75],[84,77,84,83],[78,95,81,99],[80,1,82,24],[80,25,82,29],[80,30,82,34],[80,35,82,40],[80,41,82,52],[80,53,81,60],[80,61,81,65],[80,66,81,70],[80,71,81,75],[78,76,79,77],[78,78,79,79],[78,80,79,81],[78,82,79,83],[78,84,79,90],[78,93,81,94],[81,77,81,81],[78,55,79,56],[78,57,79,58],[78,59,79,60],[78,61,79,65],[78,66,79,70],[78,71,79,75],[78,1,79,24],[78,25,79,29],[78,30,79,34],[78,35,79,40],[78,41,79,52],[78,53,79,54],[76,61,77,65],[76,66,77,70],[76,71,77,75],[76,76,77,77],[76,78,77,79],[76,80,77,81],[74,95,77,99],[76,1,77,24],[76,25,77,29],[76,30,77,34],[76,35,77,40],[76,41,77,52],[76,53,77,54],[76,55,77,56],[76,57,77,58],[76,59,77,60],[74,76,75,77],[74,78,75,79],[74,80,75,81],[74,82,75,86],[74,87,75,90],[74,93,77,94],[76,82,77,86],[76,87,77,90],[74,55,75,56],[74,57,75,58],[74,59,75,60],[74,61,75,65],[74,66,75,70],[74,71,75,75],[74,1,75,24],[74,25,75,29],[74,30,75,34],[74,35,75,40],[74,41,75,52],[74,53,75,54],[72,61,73,65],[72,66,73,70],[72,71,73,75],[72,76,73,77],[72,78,73,79],[72,80,73,81],[70,95,73,99],[72,1,73,24],[72,25,73,29],[72,30,73,34],[72,35,73,40],[72,41,73,52],[72,53,73,54],[72,55,73,56],[72,57,73,58],[72,59,73,60],[70,76,71,77],[70,78,71,79],[70,80,71,81],[70,82,71,86],[70,87,71,90],[70,93,73,94],[72,82,73,86],[72,87,73,90],[70,55,71,56],[70,57,71,58],[70,59,71,60],[70,61,71,65],[70,66,71,70],[70,71,71,75],[70,1,71,24],[70,25,71,29],[70,30,71,34],[70,35,71,40],[70,41,71,52],[70,53,71,54],[68,61,69,65],[68,66,69,70],[68,71,69,75],[68,76,69,77],[68,78,69,79],[68,80,69,81],[66,95,69,99],[68,1,69,24],[68,25,69,29],[68,30,69,34],[68,35,69,40],[68,41,69,52],[68,53,69,54],[68,55,69,56],[68,57,69,58],[68,59,69,60],[66,76,67,77],[66,78,67,79],[66,80,67,81],[66,82,67,86],[66,87,67,90],[66,93,69,94],[68,82,69,86],[68,87,69,90],[66,55,67,56],[66,57,67,58],[66,59,67,60],[66,61,67,65],[66,66,67,70],[66,71,67,75],[66,1,67,24],[66,25,67,29],[66,30,67,34],[66,35,67,40],[66,41,67,52],[66,53,67,54],[62,61,63,75],[62,76,63,81],[62,82,62,90],[63,82,63,86],[63,87,63,90],[64,1,65,24],[64,25,65,29],[64,30,65,34],[64,35,65,40],[64,41,65,52],[64,71,65,75],[64,76,65,77],[64,78,65,79],[64,80,65,81],[64,82,65,86],[64,87,65,90],[64,53,65,54],[64,55,65,56],[64,57,65,58],[64,59,65,60],[64,61,65,65],[64,66,65,70],[59,53,60,54],[59,55,60,56],[59,58,60,62],[59,63,60,90],[62,1,63,24],[62,25,63,29],[62,30,63,34],[62,35,63,40],[62,41,63,52],[62,53,63,60],[59,40,60,41],[59,42,60,43],[59,45,60,46],[59,47,60,48],[59,49,60,50],[59,51,60,52],[59,27,60,28],[59,29,60,30],[59,32,60,33],[59,34,60,35],[59,36,60,37],[59,38,60,39],[59,14,60,15],[59,16,60,17],[59,18,60,19],[59,21,60,22],[59,23,60,24],[59,25,60,26],[59,1,60,2],[59,3,60,4],[59,5,60,6],[59,7,60,8],[59,10,60,11],[59,12,60,13],[58,1,58,8],[58,10,58,19],[58,21,58,30],[58,32,58,43],[58,45,58,56],[57,75,58,76],[57,77,58,78],[57,79,58,80],[57,81,58,82],[57,63,58,64],[57,65,58,66],[57,67,58,68],[57,69,58,70],[57,71,58,72],[57,73,58,74],[47,74,48,75],[47,76,48,77],[47,78,48,79],[47,80,48,81],[47,82,48,83],[47,1,48,29],[47,37,48,56],[47,64,48,65],[47,66,48,67],[47,68,48,69],[47,70,48,71],[52,95,65,99],[54,58,56,62],[54,63,56,90],[57,58,58,62],[39,61,40,65],[39,66,40,70],[39,71,40,75],[41,53,42,60],[41,61,42,65],[41,66,42,70],[41,71,42,75],[57,87,58,88],[57,89,58,90],[57,83,58,84],[57,85,58,86],[47,84,48,85],[47,93,48,99],[49,5,49,99],[50,5,50,26],[50,27,50,99],[52,58,53,62],[52,63,53,90],[52,93,65,94],[47,72,48,73],[39,1,41,24],[39,25,41,29],[39,30,41,34],[39,35,41,40],[39,41,41,52],[39,53,40,60],[35,95,38,99],[36,1,38,24],[36,25,38,29],[36,30,38,34],[36,35,38,40],[36,41,38,52],[36,77,36,81],[37,53,38,60],[37,61,38,65],[37,66,38,70],[35,53,36,60],[35,61,36,65],[35,66,36,70],[35,71,36,75],[35,77,35,81],[35,93,38,94],[37,71,38,75],[37,77,37,83],[31,95,34,99],[33,1,35,24],[33,25,35,29],[33,30,35,34],[33,35,35,40],[33,41,35,52],[33,53,34,60],[33,61,34,65],[33,66,34,70],[33,71,34,75],[31,76,32,77],[31,78,32,79],[31,80,32,81],[31,82,32,83],[31,84,32,90],[31,93,34,94],[34,77,34,81],[31,55,32,56],[31,57,32,58],[31,59,32,60],[31,61,32,65],[31,66,32,70],[31,71,32,75],[31,1,32,24],[31,25,32,29],[31,30,32,34],[31,35,32,40],[31,41,32,52],[31,53,32,54],[29,61,30,65],[29,66,30,70],[29,71,30,75],[29,76,30,77],[29,78,30,79],[29,80,30,81],[27,95,30,99],[29,1,30,24],[29,25,30,29],[29,30,30,34],[29,35,30,40],[29,41,30,52],[29,53,30,54],[29,55,30,56],[29,57,30,58],[29,59,30,60],[27,76,28,77],[27,78,28,79],[27,80,28,81],[27,82,28,86],[27,87,28,90],[27,93,30,94],[29,82,30,86],[29,87,30,90],[27,55,28,56],[27,57,28,58],[27,59,28,60],[27,61,28,65],[27,66,28,70],[27,71,28,75],[27,1,28,24],[27,25,28,29],[27,30,28,34],[27,35,28,40],[27,41,28,52],[27,53,28,54],[25,61,26,65],[25,66,26,70],[25,71,26,75],[25,76,26,77],[25,78,26,79],[25,80,26,81],[23,95,26,99],[25,1,26,24],[25,25,26,29],[25,30,26,34],[25,35,26,40],[25,41,26,52],[25,53,26,54],[25,55,26,56],[25,57,26,58],[25,59,26,60],[23,76,24,77],[23,78,24,79],[23,80,24,81],[23,82,24,86],[23,87,24,90],[23,93,26,94],[25,82,26,86],[25,87,26,90],[23,55,24,56],[23,57,24,58],[23,59,24,60],[23,61,24,65],[23,66,24,70],[23,71,24,75],[23,1,24,24],[23,25,24,29],[23,30,24,34],[23,35,24,40],[23,41,24,52],[23,53,24,54],[21,61,22,65],[21,66,22,70],[21,71,22,75],[21,76,22,77],[21,78,22,79],[21,80,22,81],[19,95,22,99],[21,1,22,24],[21,25,22,29],[21,30,22,34],[21,35,22,40],[21,41,22,52],[21,53,22,54],[21,55,22,56],[21,57,22,58],[21,59,22,60],[19,76,20,77],[19,78,20,79],[19,80,20,81],[19,82,20,86],[19,87,20,90],[19,93,22,94],[21,82,22,86],[21,87,22,90],[19,55,20,56],[19,57,20,58],[19,59,20,60],[19,61,20,65],[19,66,20,70],[19,71,20,75],[19,1,20,24],[19,25,20,29],[19,30,20,34],[19,35,20,40],[19,41,20,52],[19,53,20,54],[17,1,18,24],[17,25,18,29],[17,30,18,34],[17,35,18,40],[17,41,18,52],[17,71,18,75],[17,76,18,77],[17,78,18,79],[17,80,18,81],[17,53,18,54],[17,55,18,56],[17,57,18,58],[17,59,18,60],[17,61,18,65],[17,66,18,70],[12,53,13,54],[12,55,13,56],[12,58,13,62],[12,63,13,90],[15,1,16,24],[15,25,16,29],[15,30,16,34],[15,35,16,40],[15,41,16,52],[15,53,16,60],[12,40,13,41],[12,42,13,43],[12,45,13,46],[12,47,13,48],[12,49,13,50],[12,51,13,52],[12,27,13,28],[12,29,13,30],[12,32,13,33],[12,34,13,35],[12,36,13,37],[12,38,13,39],[12,14,13,15],[12,16,13,17],[12,18,13,19],[12,21,13,22],[12,23,13,24],[12,25,13,26],[12,1,13,2],[12,3,13,4],[12,5,13,6],[12,7,13,8],[12,10,13,11],[12,12,13,13],[11,1,11,8],[11,10,11,19],[11,21,11,30],[11,32,11,43],[11,45,11,56],[10,73,11,74],[10,75,11,76],[10,77,11,78],[10,79,11,80],[5,95,18,99],[7,58,9,62],[7,63,9,86],[7,87,9,90],[10,58,11,62],[10,63,11,64],[10,65,11,66],[10,67,11,68],[10,69,11,70],[10,71,11,72],[10,85,11,86],[10,87,11,88],[10,89,11,90],[10,81,11,82],[10,83,11,84],[15,61,16,75],[15,76,16,81],[15,82,15,90],[16,82,16,86],[16,87,16,90],[17,82,18,86],[17,87,18,90],[5,1,8,9],[5,10,8,56],[52,1,55,9],[52,10,55,56],[0,84,1,85],[0,93,1,99],[2,5,2,99],[3,5,3,26],[3,27,3,99],[5,58,6,62],[5,63,6,90],[5,93,18,94],[0,72,1,73],[0,74,1,75],[0,76,1,77],[0,78,1,79],[0,80,1,81],[0,82,1,83],[0,1,1,29],[0,37,1,56],[0,64,1,65],[0,66,1,67],[0,68,1,69],[0,70,1,71]]}
[null,"　　古久根建設株式会社　御中",null,null,null,null,null,null,null,null,null,null,null,null,null,null,null,null,null,null,null,null,null,null,null,null,null,null,null,null,null,null,null,null,null,null,null,"請　　求　　書",null,null,null,null,null,null,null,null,null,null,null,null,null,null,null,null,null,null,null,null,null,null,null,null,null,null,2,null,0,null,null,null,null,null,"年",null,null,null,null,null,"月",null,null,null,null,null,"日",null,null,null,null,null,null,null,null,"（正）"]
[]
[]
[null,null,null,null,null,"下記の通り請求致します。"]
[]
[null,"工事名\n部署名",null,null,null,null,null,null,null,null,null,null,null,null,null,null,null,null,null,null,null,null,null,null,null,null,null,null,null,null,null,null,null,null,null,null,null,null,null,null,null,null,null,null,null,null,null,null,null,null,null,null,null,null,null,null,null,null,"住所",null,null,null,null,null,null,null,null,null,null,null,null,null,null,null,null,null,null,null,null,null,null,null,null,null,null,null,null,null,null,null,null,null,null,"役\n\n員"]
[]
[null,null,null,null,null,null,null,null,null,null,null,null,null,null,null,null,null,null,null,null,null,null,null,null,null,null,null,null,null,null,null,null,null,null,null,null,null,null,null,null,null,null,null,null,null,null,null,null,null,null,null,null,null,null,null,null,null,null,"社名"]
[]
[]
[null,null,null,null,null,null,null,null,null,null,null,null,null,null,null,null,null,null,null,null,null,null,null,null,null,null,null,null,null,null,null,null,null,null,null,null,null,null,null,null,null,null,null,null,null,null,null,null,null,null,null,null,null,null,null,null,null,null,"登録番号",null,null,null,null,"T"]
[null,"勘定科目ｺｰﾄﾞ",null,null,null,null,null,null,null,null,"工事・部署ｺｰﾄﾞ",null,null,null,null,null,null,null,null,null,null,"工事枝番号",null,null,null,null,null,null,null,null,null,null,"取引先ｺｰﾄﾞ",null,null,null,null,null,null,null,null,null,null,null,null,"注文番号"]
[null,null,null,null,null,null,null,null,null,null,null,null,null,null,null,null,null,null,null,null,null,null,null,null,null,null,null,null,null,null,null,null,null,null,null,null,null,null,null,null,null,null,null,null,null,null,null,null,null,null,null,null,null,null,null,null,null,null,"TEL"]
[]
[]
[null,"内容\n（品質・形状・寸法）",null,null,null,null,null,null,null,null,null,null,null,null,null,null,null,null,null,null,null,null,null,null,null,"数量",null,null,null,null,"単位",null,null,null,null,"単価",null,null,null,null,null,"請求金額",null,null,null,null,null,null,null,null,null,null,null,"費目コード",null,null,null,null,null,null,null,"金額",null,null,null,null,null,null,null,null,null,null,null,null,null,null,"原価コード",null,null,null,null,null,"課税区分"]
[null,null,null,null,null,null,null,null,null,null,null,null,null,null,null,null,null,null,null,null,null,null,null,null,null,null,null,null,null,null,null,null,null,null,null,null,null,null,null,null,null,null,null,null,null,null,null,null,null,null,null,null,null,null,null,null,null,null,null,null,null,null,null,null,null,null,null,null,null,null,null,null,null,null,null,null,null,null,null,null,null,null,"①",null,null,null,null,"②"]
[]
[]
[null,null,null,null,null,null,null,null,null,null,null,null,null,null,null,null,null,null,null,null,null,null,null,null,null,null,null,null,null,null,null,null,null,null,null,null,null,null,null,null,null,null,null,null,null,null,null,null,null,null,null,null,null,null,null,null,null,null,null,null,null,null,null,null,null,null,null,null,null,null,null,null,null,null,null,null,null,null,null,null,null,null,null,null,null,null,null,null,null,null,null,null,null,"部\n\n長"]
[]
[]
[]
[null,null,null,null,null,null,null,null,null,null,null,null,null,null,null,null,null,null,null,null,null,null,null,null,null,null,null,null,null,null,null,null,null,null,null,null,null,null,null,null,null,null,null,null,null,null,null,null,null,null,null,null,null,null,null,null,null,null,null,null,null,null,null,null,null,null,null,null,null,null,null,null,null,null,null,null,null,null,null,null,null,null,null,null,null,null,null,null,null,null,null,null,null,"次\n\n長"]
[]
[]
[]
[null,null,null,null,null,null,null,null,null,null,null,null,null,null,null,null,null,null,null,null,null,null,null,null,null,null,null,null,null,null,null,null,null,null,null,null,null,null,null,null,null,null,null,null,null,null,null,null,null,null,null,null,null,null,null,null,null,null,null,null,null,null,null,null,null,null,null,null,null,null,null,null,null,null,null,null,null,null,null,null,null,null,null,null,null,null,null,null,null,null,null,null,null,"課\n\n長"]
[]
[]
[]
[null,null,null,null,null,null,null,null,null,null,null,null,null,null,null,null,null,null,null,null,null,null,null,null,null,null,null,null,null,null,null,null,null,null,null,null,null,null,null,null,null,null,null,null,null,null,null,null,null,null,null,null,null,9,null,9,null,0,null,0,null,null,null,null,null,null,null,null,null,null,null,null,null,null,null,null,null,null,null,null,null,null,null,null,null,null,null,null,null,null,null,null,null,"所\n\n長"]
[]
[null,"工　事　費　計",null,null,null,null,null,null,null,null,null,null,null,null,null,null,null,null,null,null,null,null,null,null,null,null,null,null,null,null,null,null,null,null,null,null,null,null,null,null,null,{"$f":"SUM(AP18:BA33)","v":0},null,null,null,null,null,null,null,null,null,null,null,"合　　計"]
[null,null,null,null,null,null,null,null,null,null,null,null,null,null,null,null,null,null,null,null,null,null,null,null,null,null,null,null,null,null,null,null,null,null,null,null,null,null,null,null,null,null,null,null,null,null,null,null,null,null,null,null,null,null,null,null,null,null,null,null,null,null,null,null,null,null,null,null,null,null,null,null,null,null,null,null,null,"材　100"]
[null,null,null,null,null,null,null,null,null,null,null,null,null,null,null,null,null,null,null,null,null,null,null,null,null,null,null,null,null,null,null,null,null,null,null,null,null,null,null,null,null,null,null,null,null,null,null,null,null,null,null,null,null,"契　約　額",null,null,null,null,null,null,null,null,null,null,null,null,null,null,null,null,null,null,null,null,null,null,null,"労　200",null,null,null,null,null,null,null,null,null,null,null,null,null,null,null,"係\n\n員"]
[null,"消　　費　　税",null,null,null,null,null,null,null,null,null,null,null,null,null,null,null,null,null,null,null,null,null,null,null,null,null,null,null,null,null,null,null,null,null,"8%",null,null,null,null,null,{"$f":"INT(AP34*0.08)","v":0},null,null,null,null,null,null,null,null,null,null,null,null,null,null,null,null,null,null,null,null,null,null,null,null,null,null,null,null,null,null,null,null,null,null,null,"外　300"]
[null,null,null,null,null,null,null,null,null,null,null,null,null,null,null,null,null,null,null,null,null,null,null,null,null,null,null,null,null,null,null,null,null,null,null,null,null,null,null,null,null,null,null,null,null,null,null,null,null,null,null,null,null,"既　支　払　額",null,null,null,null,null,null,null,null,null,null,null,null,null,null,null,null,null,null,null,null,null,null,null," 経　401-427"]
[]
[null,"合　　　　　　計",null,null,null,null,null,null,null,null,null,null,null,null,null,null,null,null,null,null,null,null,null,null,null,null,null,null,null,null,null,null,null,null,null,null,null,null,null,null,null,{"$f":"SUM(AP34:BA39)","v":0},null,null,null,null,null,null,null,null,null,null,null,"今 回 支 払 額"]
[]
[null,null,null,null,null,null,null,null,null,null,null,null,null,null,null,null,null,null,null,null,null,null,null,null,null,null,null,null,null,null,null,null,null,null,null,null,null,null,null,null,null,null,null,null,null,null,null,null,null,null,null,null,null,"契　約　残　額"]
[]
[null,null,null,null,null,"※課税仕入　9900に消費税額を必ず記入　課税区分①②は無記入"]
[null,null,null,null,null,"※非課税、不課税仕入　9900に消費税額0と記入　課税区分①のみ1と記入"]
[null,null,null,null,null,"※太線内に記入し、捺印のうえ提出願います。"]
[]
[null,"　　古久根建設株式会社　御中",null,null,null,null,null,null,null,null,null,null,null,null,null,null,null,null,null,null,null,null,null,null,null,null,null,null,null,null,null,null,null,null,null,null,null,"請　　求　　書",null,null,null,null,null,null,null,null,null,null,null,null,null,null,null,null,null,null,null,null,null,null,null,null,null,null,2,null,0,null,{"$f":"BQ1","v":0},null,{"$f":"BS1&\"\"","v":""},null,"年",null,{"$f":"BW1&\"\"","v":""},null,{"$f":"BY1&\"\"","v":""},null,"月",null,{"$f":"CC1&\"\"","v":""},null,{"$f":"CE1&\"\"","v":""},null,"日",null,null,null,null,null,null,null,null,"（控）"]
[]
[]
[null,null,null,null,null,"下記の通り請求致します。"]
[]
[null,"工事名\n部署名",null,null,null,null,null,null,null,null,{"$f":"K6","v":0},null,null,null,null,null,null,null,null,null,null,null,null,null,null,null,null,null,null,null,null,null,null,null,null,null,null,null,null,null,null,null,null,null,null,null,null,null,null,null,null,null,null,null,null,null,null,null,"住所",null,null,null,null,{"$f":"BL6","v":0},null,null,null,null,null,null,null,null,null,null,null,null,null,null,null,null,null,null,null,null,null,null,null,null,null,null,null,null,null,"役\n\n員"]
[]
[null,null,null,null,null,null,null,null,null,null,null,null,null,null,null,null,null,null,null,null,null,null,null,null,null,null,null,null,null,null,null,null,null,null,null,null,null,null,null,null,null,null,null,null,null,null,null,null,null,null,null,null,null,null,null,null,null,null,"社名",null,null,null,null,{"$f":"BL8","v":0}]
[]
[]
[null,null,null,null,null,null,null,null,null,null,null,null,null,null,null,null,null,null,null,null,null,null,null,null,null,null,null,null,null,null,null,null,null,null,null,null,null,null,null,null,null,null,null,null,null,null,null,null,null,null,null,null,null,null,null,null,null,null,"登録番号",null,null,null,null,"T",null,{"$f":"BN11&\"\"","v":""},null,{"$f":"BP11&\"\"","v":""},null,{"$f":"BR11&\"\"","v":""},null,{"$f":"BT11&\"\"","v":""},null,{"$f":"BV11&\"\"","v":""},null,{"$f":"BX11&\"\"","v":""},null,{"$f":"BZ11&\"\"","v":""},null,{"$f":"CB11&\"\"","v":""},null,{"$f":"CD11&\"\"","v":""},null,{"$f":"CF11&\"\"","v":""},null,{"$f":"CH11&\"\"","v":""},null,{"$f":"CJ11&\"\"","v":""},null,{"$f":"CL11&\"\"","v":""}]
[null,"勘定科目ｺｰﾄﾞ",null,null,null,null,null,null,null,null,"工事・部署ｺｰﾄﾞ",null,null,null,null,null,null,null,null,null,null,"工事枝番号",null,null,null,null,null,null,null,null,null,null,"取引先ｺｰﾄﾞ",null,null,null,null,null,null,null,null,null,null,null,null,"注文番号"]
[null,null,null,null,null,null,null,null,null,null,null,null,null,null,null,null,null,null,null,null,null,null,null,null,null,null,null,null,null,null,null,null,{"$f":"AG13&\"\"","v":""},null,{"$f":"AI13&\"\"","v":""},null,{"$f":"AK13&\"\"","v":""},null,{"$f":"AM13&\"\"","v":""},null,{"$f":"AO13&\"\"","v":""},null,{"$f":"AQ13&\"\"","v":""},null,null,{"$f":"AT13&\"\"","v":""},null,{"$f":"AV13&\"\"","v":""},null,{"$f":"AX13&\"\"","v":""},null,{"$f":"AZ13&\"\"","v":""},null,{"$f":"BB13&\"\"","v":""},null,{"$f":"BD13&\"\"","v":""},null,null,"TEL",null,null,null,null,{"$f":"BL13","v":0}]
[]
[]
[null,"内容\n（品質・形状・寸法）",null,null,null,null,null,null,null,null,null,null,null,null,null,null,null,null,null,null,null,null,null,null,null,"数量",null,null,null,null,"単位",null,null,null,null,"単価",null,null,null,null,null,"請求金額",null,null,null,null,null,null,null,null,null,null,null,"費目コード",null,null,null,null,null,null,null,"金額",null,null,null,null,null,null,null,null,null,null,null,null,null,null,"原価コード",null,null,null,null,null,"課税区分"]
[null,null,null,null,null,null,null,null,null,null,null,null,null,null,null,null,null,null,null,null,null,null,null,null,null,null,null,null,null,null,null,null,null,null,null,null,null,null,null,null,null,null,null,null,null,null,null,null,null,null,null,null,null,null,null,null,null,null,null,null,null,null,null,null,null,null,null,null,null,null,null,null,null,null,null,null,null,null,null,null,null,null,"①",null,null,null,null,"②"]
[null,{"$f":"B18","v":0},null,null,null,null,null,null,null,null,null,null,null,null,null,null,null,null,null,null,null,null,null,null,null,{"$f":"Z18","v":0},null,null,null,null,{"$f":"AE18&\"\"","v":""},null,null,null,null,{"$f":"AJ18","v":0},null,null,null,null,null,{"$f":"AP18","v":0}]
[]
[null,{"$f":"B20","v":0},null,null,null,null,null,null,null,null,null,null,null,null,null,null,null,null,null,null,null,null,null,null,null,{"$f":"Z20","v":0},null,null,null,null,{"$f":"AE20&\"\"","v":""},null,null,null,null,{"$f":"AJ20","v":0},null,null,null,null,null,{"$f":"AP20","v":0},null,null,null,null,null,null,null,null,null,null,null,null,null,null,null,null,null,null,null,null,null,null,null,null,null,null,null,null,null,null,null,null,null,null,null,null,null,null,null,null,null,null,null,null,null,null,null,null,null,null,null,"部\n\n長"]
[]
[null,{"$f":"B22","v":0},null,null,null,null,null,null,null,null,null,null,null,null,null,null,null,null,null,null,null,null,null,null,null,{"$f":"Z22","v":0},null,null,null,null,{"$f":"AE22&\"\"","v":""},null,null,null,null,{"$f":"AJ22","v":0},null,null,null,null,null,{"$f":"AP22","v":0}]
[]
[null,{"$f":"B24","v":0},null,null,null,null,null,null,null,null,null,null,null,null,null,null,null,null,null,null,null,null,null,null,null,{"$f":"Z24","v":0},null,null,null,null,{"$f":"AE24&\"\"","v":""},null,null,null,null,{"$f":"AJ24","v":0},null,null,null,null,null,{"$f":"AP24","v":0},null,null,null,null,null,null,null,null,null,null,null,null,null,null,null,null,null,null,null,null,null,null,null,null,null,null,null,null,null,null,null,null,null,null,null,null,null,null,null,null,null,null,null,null,null,null,null,null,null,null,null,"次\n\n長"]
[]
[null,{"$f":"B26","v":0},null,null,null,null,null,null,null,null,null,null,null,null,null,null,null,null,null,null,null,null,null,null,null,{"$f":"Z26","v":0},null,null,null,null,{"$f":"AE26&\"\"","v":""},null,null,null,null,{"$f":"AJ26","v":0},null,null,null,null,null,{"$f":"AP26","v":0}]
[]
[null,{"$f":"B28","v":0},null,null,null,null,null,null,null,null,null,null,null,null,null,null,null,null,null,null,null,null,null,null,null,{"$f":"Z28","v":0},null,null,null,null,{"$f":"AE28&\"\"","v":""},null,null,null,null,{"$f":"AJ28","v":0},null,null,null,null,null,{"$f":"AP28","v":0},null,null,null,null,null,null,null,null,null,null,null,null,null,null,null,null,null,null,null,null,null,null,null,null,null,null,null,null,null,null,null,null,null,null,null,null,null,null,null,null,null,null,null,null,null,null,null,null,null,null,null,"課\n\n長"]
[]
[null,{"$f":"B30","v":0},null,null,null,null,null,null,null,null,null,null,null,null,null,null,null,null,null,null,null,null,null,null,null,{"$f":"Z30","v":0},null,null,null,null,{"$f":"AE30&\"\"","v":""},null,null,null,null,{"$f":"AJ30","v":0},null,null,null,null,null,{"$f":"AP30","v":0}]
[]
[null,{"$f":"B32","v":0},null,null,null,null,null,null,null,null,null,null,null,null,null,null,null,null,null,null,null,null,null,null,null,{"$f":"Z32","v":0},null,null,null,null,{"$f":"AE32&\"\"","v":""},null,null,null,null,{"$f":"AJ32","v":0},null,null,null,null,null,{"$f":"AP32","v":0},null,null,null,null,null,null,null,null,null,null,null,9,null,9,null,0,null,0,null,null,null,null,null,null,null,null,null,null,null,null,null,null,null,null,null,null,null,null,null,null,null,null,null,null,null,null,null,null,null,null,null,"所\n\n長"]
[]
[null,"工　事　費　計",null,null,null,null,null,null,null,null,null,null,null,null,null,null,null,null,null,null,null,null,null,null,null,null,null,null,null,null,null,null,null,null,null,null,null,null,null,null,null,{"$f":"AP34","v":0},null,null,null,null,null,null,null,null,null,null,null,"合　　計"]
[null,null,null,null,null,null,null,null,null,null,null,null,null,null,null,null,null,null,null,null,null,null,null,null,null,null,null,null,null,null,null,null,null,null,null,null,null,null,null,null,null,null,null,null,null,null,null,null,null,null,null,null,null,null,null,null,null,null,null,null,null,null,null,null,null,null,null,null,null,null,null,null,null,null,null,null,null,"材　100"]
[null,null,null,null,null,null,null,null,null,null,null,null,null,null,null,null,null,null,null,null,null,null,null,null,null,null,null,null,null,null,null,null,null,null,null,null,null,null,null,null,null,null,null,null,null,null,null,null,null,null,null,null,null,"契　約　額",null,null,null,null,null,null,null,null,null,null,null,null,null,null,null,null,null,null,null,null,null,null,null,"労　200",null,null,null,null,null,null,null,null,null,null,null,null,null,null,null,"係\n\n員"]
[null,"消　　費　　税",null,null,null,null,null,null,null,null,null,null,null,null,null,null,null,null,null,null,null,null,null,null,null,null,null,null,null,null,null,null,null,null,null,{"$f":"AJ37","v":"8%"},null,null,null,null,null,{"$f":"AP37","v":0},null,null,null,null,null,null,null,null,null,null,null,null,null,null,null,null,null,null,null,null,null,null,null,null,null,null,null,null,null,null,null,null,null,null,null,"外　300"]
[null,null,null,null,null,null,null,null,null,null,null,null,null,null,null,null,null,null,null,null,null,null,null,null,null,null,null,null,null,null,null,null,null,null,null,null,null,null,null,null,null,null,null,null,null,null,null,null,null,null,null,null,null,"既　支　払　額",null,null,null,null,null,null,null,null,null,null,null,null,null,null,null,null,null,null,null,null,null,null,null," 経　401-427"]
[]
[null,"合　　　　　　計",null,null,null,null,null,null,null,null,null,null,null,null,null,null,null,null,null,null,null,null,null,null,null,null,null,null,null,null,null,null,null,null,null,null,null,null,null,null,null,{"$f":"AP40","v":0},null,null,null,null,null,null,null,null,null,null,null,"今 回 支 払 額"]
[]
[null,null,null,null,null,null,null,null,null,null,null,null,null,null,null,null,null,null,null,null,null,null,null,null,null,null,null,null,null,null,null,null,null,null,null,null,null,null,null,null,null,null,null,null,null,null,null,null,null,null,null,null,null,"契　約　残　額"]
[]
[null,null,null,null,null,"※課税仕入　9900に消費税額を必ず記入　課税区分①②は無記入"]
[null,null,null,null,null,"※非課税、不課税仕入　9900に消費税額0と記入　課税区分①のみ1と記入"]
[null,null,null,null,null,"※太線内に記入し、捺印のうえ提出願います。"]

{"sheet":"不課税","index":2,"n_rows":93,"n_cols":94,"rows_kept":93,"cut":false,"hidden":false,"merged":[[0,70,1,71],[5,95,18,99],[7,58,9,62],[7,63,9,86],[7,87,9,90],[10,85,11,86],[10,87,11,88],[10,89,11,90],[10,81,11,82],[10,83,11,84],[0,84,1,85],[0,93,1,99],[2,5,2,99],[3,5,3,26],[3,27,3,99],[5,58,6,62],[5,63,6,90],[5,93,18,94],[0,72,1,73],[0,74,1,75],[0,76,1,77],[0,78,1,79],[0,80,1,81],[0,82,1,83],[0,1,1,29],[0,37,1,56],[0,64,1,65],[0,66,1,67],[0,68,1,69],[11,1,11,8],[11,10,11,19],[11,21,11,30],[11,32,11,43],[11,45,11,56],[5,1,8,9],[5,10,8,56],[10,73,11,74],[10,75,11,76],[10,77,11,78],[10,79,11,80],[10,58,11,62],[10,63,11,64],[10,65,11,66],[10,67,11,68],[10,69,11,70],[10,71,11,72],[12,18,13,19],[12,21,13,22],[12,23,13,24],[12,25,13,26],[12,1,13,2],[12,3,13,4],[12,5,13,6],[12,7,13,8],[12,10,13,11],[12,12,13,13],[12,53,13,54],[12,55,13,56],[12,58,13,62],[12,63,13,90],[15,1,16,24],[15,25,16,29],[15,30,16,34],[15,35,16,40],[15,41,16,52],[15,53,16,60],[12,40,13,41],[12,42,13,43],[12,45,13,46],[12,47,13,48],[12,49,13,50],[12,51,13,52],[12,27,13,28],[12,29,13,30],[12,32,13,33],[12,34,13,35],[12,36,13,37],[12,38,13,39],[12,14,13,15],[12,16,13,17],[15,61,16,75],[15,76,16,81],[15,82,15,90],[16,82,16,86],[16,87,16,90],[17,1,18,24],[17,25,18,29],[17,30,18,34],[17,35,18,40],[17,41,18,52],[17,71,18,75],[17,76,18,77],[17,78,18,79],[17,80,18,81],[17,82,18,86],[17,87,18,90],[17,53,18,54],[17,55,18,56],[17,57,18,58],[17,59,18,60],[17,61,18,65],[17,66,18,70],[19,55,20,56],[19,57,20,58],[19,59,20,60],[19,61,20,65],[19,66,20,70],[19,71,20,75],[19,1,20,24],[19,25,20,29],[19,30,20,34],[19,35,20,40],[19,41,20,52],[19,53,20,54],[21,61,22,65],[21,66,22,70],[21,71,22,75],[21,76,22,77],[21,78,22,79],[21,80,22,81],[19,95,22,99],[21,1,22,24],[21,25,22,29],[21,30,22,34],[21,35,22,40],[21,41,22,52],[21,53,22,54],[21,55,22,56],[21,57,22,58],[21,59,22,60],[19,76,20,77],[19,78,20,79],[19,80,20,81],[19,82,20,86],[19,87,20,90],[19,93,22,94],[21,82,22,86],[21,87,22,90],[23,61,24,65],[23,66,24,70],[23,71,24,75],[23,1,24,24],[23,25,24,29],[23,30,24,34],[23,35,24,40],[23,41,24,52],[23,53,24,54],[25,76,26,77],[25,78,26,79],[25,80,26,81],[23,95,26,99],[25,1,26,24],[25,25,26,29],[25,30,26,34],[25,35,26,40],[25,41,26,52],[25,53,26,54],[25,55,26,56],[25,57,26,58],[25,59,26,60],[23,76,24,77],[23,78,24,79],[23,80,24,81],[23,82,24,86],[23,87,24,90],[23,93,26,94],[25,82,26,86],[25,87,26,90],[23,55,24,56],[23,57,24,58],[23,59,24,60],[27,66,28,70],[27,71,28,75],[27,1,28,24],[27,25,28,29],[27,30,28,34],[27,35,28,40],[27,41,28,52],[27,53,28,54],[25,61,26,65],[25,66,26,70],[25,71,26,75],[29,78,30,79],[29,80,30,81],[27,95,30,99],[29,1,30,24],[29,25,30,29],[29,30,30,34],[29,35,30,40],[29,41,30,52],[29,53,30,54],[29,55,30,56],[29,57,30,58],[29,59,30,60],[27,76,28,77],[27,78,28,79],[27,80,28,81],[27,82,28,86],[27,87,28,90],[27,93,30,94],[29,82,30,86],[29,87,30,90],[27,55,28,56],[27,57,28,58],[27,59,28,60],[27,61,28,65],[31,25,32,29],[31,30,32,34],[31,35,32,40],[31,41,32,52],[31,53,32,54],[29,61,30,65],[29,66,30,70],[29,71,30,75],[29,76,30,77],[31,95,34,99],[33,1,35,24],[33,25,35,29],[33,30,35,34],[33,35,35,40],[33,41,35,52],[33,53,34,60],[33,61,34,65],[33,66,34,70],[33,71,34,75],[31,76,32,77],[31,78,32,79],[31,80,32,81],[31,82,32,83],[31,84,32,90],[31,93,34,94],[34,77,34,81],[31,55,32,56],[31,57,32,58],[31,59,32,60],[31,61,32,65],[31,66,32,70],[31,71,32,75],[31,1,32,24],[39,1,41,24],[39,25,41,29],[39,30,41,34],[39,35,41,40],[39,41,41,52],[39,53,40,60],[35,95,38,99],[36,1,38,24],[36,25,38,29],[36,30,38,34],[36,35,38,40],[36,41,38,52],[36,77,36,81],[37,53,38,60],[37,61,38,65],[37,66,38,70],[35,53,36,60],[35,61,36,65],[35,66,36,70],[35,71,36,75],[35,77,35,81],[35,93,38,94],[37,71,38,75],[37,77,37,83],[52,95,65,99],[54,58,56,62],[54,63,56,90],[57,58,58,62],[39,61,40,65],[39,66,40,70],[39,71,40,75],[41,53,42,60],[41,61,42,65],[41,66,42,70],[41,71,42,75],[57,87,58,88],[57,89,58,90],[57,83,58,84],[57,85,58,86],[47,84,48,85],[47,93,48,99],[49,5,49,99],[50,5,50,26],[50,27,50,99],[52,58,53,62],[52,63,53,90],[52,93,65,94],[47,72,48,73],[47,74,48,75],[47,76,48,77],[47,78,48,79],[47,80,48,81],[47,82,48,83],[47,1,48,29],[47,37,48,56],[47,64,48,65],[47,66,48,67],[47,68,48,69],[47,70,48,71],[58,1,58,8],[58,10,58,19],[58,21,58,30],[58,32,58,43],[58,45,58,56],[57,75,58,76],[57,77,58,78],[57,79,58,80],[57,81,58,82],[57,63,58,64],[57,65,58,66],[57,67,58,68],[57,69,58,70],[57,71,58,72],[57,73,58,74],[59,18,60,19],[59,21,60,22],[59,23,60,24],[59,25,60,26],[59,1,60,2],[59,3,60,4],[59,5,60,6],[59,7,60,8],[59,10,60,11],[59,12,60,13],[59,53,60,54],[59,55,60,56],[59,58,60,62],[59,63,60,90],[62,1,63,24],[62,25,63,29],[62,30,63,34],[62,35,63,40],[62,41,63,52],[62,53,63,60],[59,40,60,41],[59,42,60,43],[59,45,60,46],[59,47,60,48],[59,49,60,50],[59,51,60,52],[59,27,60,28],[59,29,60,30],[59,32,60,33],[59,34,60,35],[59,36,60,37],[59,38,60,39],[59,14,60,15],[59,16,60,17],[62,61,63,75],[62,76,63,81],[62,82,62,90],[63,82,63,86],[63,87,63,90],[64,1,65,24],[64,25,65,29],[64,30,65,34],[64,35,65,40],[64,41,65,52],[64,71,65,75],[64,76,65,77],[64,78,65,79],[64,80,65,81],[64,82,65,86],[64,87,65,90],[64,53,65,54],[64,55,65,56],[64,57,65,58],[64,59,65,60],[64,61,65,65],[64,66,65,70],[66,55,67,56],[66,57,67,58],[66,59,67,60],[66,61,67,65],[66,66,67,70],[66,71,67,75],[66,1,67,24],[66,25,67,29],[66,30,67,34],[66,35,67,40],[66,41,67,52],[66,53,67,54],[68,61,69,65],[68,66,69,70],[68,71,69,75],[68,76,69,77],[68,78,69,79],[68,80,69,81],[66,95,69,99],[68,1,69,24],[68,25,69,29],[68,30,69,34],[68,35,69,40],[68,41,69,52],[68,53,69,54],[68,55,69,56],[68,57,69,58],[68,59,69,60],[66,76,67,77],[66,78,67,79],[66,80,67,81],[66,82,67,86],[66,87,67,90],[66,93,69,94],[68,82,69,86],[68,87,69,90],[70,61,71,65],[70,66,71,70],[70,71,71,75],[70,1,71,24],[70,25,71,29],[70,30,71,34],[70,35,71,40],[70,41,71,52],[70,53,71,54],[72,76,73,77],[72,78,73,79],[72,80,73,81],[70,95,73,99],[72,1,73,24],[72,25,73,29],[72,30,73,34],[72,35,73,40],[72,41,73,52],[72,53,73,54],[72,55,73,56],[72,57,73,58],[72,59,73,60],[70,76,71,77],[70,78,71,79],[70,80,71,81],[70,82,71,86],[70,87,71,90],[70,93,73,94],[72,82,73,86],[72,87,73,90],[70,55,71,56],[70,57,71,58],[70,59,71,60],[74,66,75,70],[74,71,75,75],[74,1,75,24],[74,25,75,29],[74,30,75,34],[74,35,75,40],[74,41,75,52],[74,53,75,54],[72,61,73,65],[72,66,73,70],[72,71,73,75],[76,76,77,77],[76,78,77,79],[76,80,77,81],[74,95,77,99],[76,1,77,24],[76,25,77,29],[76,30,77,34],[76,35,77,40],[76,41,77,52],[76,53,77,54],[76,55,77,56],[76,57,77,58],[76,59,77,60],[74,76,75,77],[74,78,75,79],[74,80,75,81],[74,82,75,86],[74,87,75,90],[74,93,77,94],[76,82,77,86],[76,87,77,90],[74,55,75,56],[74,57,75,58],[74,59,75,60],[78,95,81,99],[80,1,82,24],[80,25,82,29],[80,30,82,34],[80,35,82,40],[80,41,82,52],[80,53,81,60],[80,61,81,65],[80,66,81,70],[80,71,81,75],[78,76,79,77],[78,78,79,79],[78,80,79,81],[78,82,79,83],[78,84,79,90],[78,93,81,94],[81,77,81,81],[78,55,79,56],[78,57,79,58],[78,59,79,60],[78,61,79,65],[78,66,79,70],[78,71,79,75],[78,1,79,24],[82,95,85,99],[83,1,85,24],[83,25,85,29],[83,30,85,34],[83,35,85,40],[83,41,85,52],[83,77,83,81],[84,53,85,60],[84,61,85,65],[84,66,85,70],[82,53,83,60],[82,61,83,65],[82,66,83,70],[82,71,83,75],[82,77,82,81],[82,93,85,94],[84,71,85,75],[84,77,84,83],[52,1,55,9],[52,10,55,56],[86,61,87,65],[86,66,87,70],[86,71,87,75],[88,53,89,60],[88,61,89,65],[88,66,89,70],[88,71,89,75],[86,1,88,24],[86,25,88,29],[86,30,88,34],[86,35,88,40],[86,41,88,52],[86,53,87,60],[78,25,79,29],[78,30,79,34],[78,35,79,40],[78,41,79,52],[78,53,79,54],[76,61,77,65],[76,66,77,70],[76,71,77,75],[74,61,75,65]]}
[null,"　　古久根建設株式会社　御中",null,null,null,null,null,null,null,null,null,null,null,null,null,null,null,null,null,null,null,null,null,null,null,null,null,null,null,null,null,null,null,null,null,null,null,"請　　求　　書",null,null,null,null,null,null,null,null,null,null,null,null,null,null,null,null,null,null,null,null,null,null,null,null,null,null,2,null,0,null,null,null,null,null,"年",null,null,null,null,null,"月",null,null,null,null,null,"日",null,null,null,null,null,null,null,null,"（正）"]
[]
[]
[null,null,null,null,null,"下記の通り請求致します。"]
[]
[null,"工事名\n部署名",null,null,null,null,null,null,null,null,null,null,null,null,null,null,null,null,null,null,null,null,null,null,null,null,null,null,null,null,null,null,null,null,null,null,null,null,null,null,null,null,null,null,null,null,null,null,null,null,null,null,null,null,null,null,null,null,"住所",null,null,null,null,null,null,null,null,null,null,null,null,null,null,null,null,null,null,null,null,null,null,null,null,null,null,null,null,null,null,null,null,null,null,"役\n\n員"]
[]
[null,null,null,null,null,null,null,null,null,null,null,null,null,null,null,null,null,null,null,null,null,null,null,null,null,null,null,null,null,null,null,null,null,null,null,null,null,null,null,null,null,null,null,null,null,null,null,null,null,null,null,null,null,null,null,null,null,null,"社名"]
[]
[]
[null,null,null,null,null,null,null,null,null,null,null,null,null,null,null,null,null,null,null,null,null,null,null,null,null,null,null,null,null,null,null,null,null,null,null,null,null,null,null,null,null,null,null,null,null,null,null,null,null,null,null,null,null,null,null,null,null,null,"登録番号",null,null,null,null,"T"]
[null,"勘定科目ｺｰﾄﾞ",null,null,null,null,null,null,null,null,"工事・部署ｺｰﾄﾞ",null,null,null,null,null,null,null,null,null,null,"工事枝番号",null,null,null,null,null,null,null,null,null,null,"取引先ｺｰﾄﾞ",null,null,null,null,null,null,null,null,null,null,null,null,"注文番号"]
[null,null,null,null,null,null,null,null,null,null,null,null,null,null,null,null,null,null,null,null,null,null,null,null,null,null,null,null,null,null,null,null,null,null,null,null,null,null,null,null,null,null,null,null,null,null,null,null,null,null,null,null,null,null,null,null,null,null,"TEL"]
[]
[]
[null,"内容\n（品質・形状・寸法）",null,null,null,null,null,null,null,null,null,null,null,null,null,null,null,null,null,null,null,null,null,null,null,"数量",null,null,null,null,"単位",null,null,null,null,"単価",null,null,null,null,null,"請求金額",null,null,null,null,null,null,null,null,null,null,null,"費目コード",null,null,null,null,null,null,null,"金額",null,null,null,null,null,null,null,null,null,null,null,null,null,null,"原価コード",null,null,null,null,null,"課税区分"]
[null,null,null,null,null,null,null,null,null,null,null,null,null,null,null,null,null,null,null,null,null,null,null,null,null,null,null,null,null,null,null,null,null,null,null,null,null,null,null,null,null,null,null,null,null,null,null,null,null,null,null,null,null,null,null,null,null,null,null,null,null,null,null,null,null,null,null,null,null,null,null,null,null,null,null,null,null,null,null,null,null,null,"①",null,null,null,null,"②"]
[]
[]
[null,null,null,null,null,null,null,null,null,null,null,null,null,null,null,null,null,null,null,null,null,null,null,null,null,null,null,null,null,null,null,null,null,null,null,null,null,null,null,null,null,null,null,null,null,null,null,null,null,null,null,null,null,null,null,null,null,null,null,null,null,null,null,null,null,null,null,null,null,null,null,null,null,null,null,null,null,null,null,null,null,null,null,null,null,null,null,null,null,null,null,null,null,"部\n\n長"]
[]
[]
[]
[null,null,null,null,null,null,null,null,null,null,null,null,null,null,null,null,null,null,null,null,null,null,null,null,null,null,null,null,null,null,null,null,null,null,null,null,null,null,null,null,null,null,null,null,null,null,null,null,null,null,null,null,null,null,null,null,null,null,null,null,null,null,null,null,null,null,null,null,null,null,null,null,null,null,null,null,null,null,null,null,null,null,null,null,null,null,null,null,null,null,null,null,null,"次\n\n長"]
[]
[]
[]
[null,null,null,null,null,null,null,null,null,null,null,null,null,null,null,null,null,null,null,null,null,null,null,null,null,null,null,null,null,null,null,null,null,null,null,null,null,null,null,null,null,null,null,null,null,null,null,null,null,null,null,null,null,null,null,null,null,null,null,null,null,null,null,null,null,null,null,null,null,null,null,null,null,null,null,null,null,null,null,null,null,null,null,null,null,null,null,null,null,null,null,null,null,"課\n\n長"]
[]
[]
[]
[null,null,null,null,null,null,null,null,null,null,null,null,null,null,null,null,null,null,null,null,null,null,null,null,null,null,null,null,null,null,null,null,null,null,null,null,null,null,null,null,null,null,null,null,null,null,null,null,null,null,null,null,null,9,null,9,null,0,null,0,null,null,null,null,null,null,null,null,null,null,null,null,null,null,null,null,null,null,null,null,null,null,null,null,null,null,null,null,null,null,null,null,null,"所\n\n長"]
[]
[null,"工　事　費　計",null,null,null,null,null,null,null,null,null,null,null,null,null,null,null,null,null,null,null,null,null,null,null,null,null,null,null,null,null,null,null,null,null,null,null,null,null,null,null,{"$f":"SUM(AP18:BA33)","v":0},null,null,null,null,null,null,null,null,null,null,null,"合　　計"]
[null,null,null,null,null,null,null,null,null,null,null,null,null,null,null,null,null,null,null,null,null,null,null,null,null,null,null,null,null,null,null,null,null,null,null,null,null,null,null,null,null,null,null,null,null,null,null,null,null,null,null,null,null,null,null,null,null,null,null,null,null,null,null,null,null,null,null,null,null,null,null,null,null,null,null,null,null,"材　100"]
[null,null,null,null,null,null,null,null,null,null,null,null,null,null,null,null,null,null,null,null,null,null,null,null,null,null,null,null,null,null,null,null,null,null,null,null,null,null,null,null,null,null,null,null,null,null,null,null,null,null,null,null,null,"契　約　額",null,null,null,null,null,null,null,null,null,null,null,null,null,null,null,null,null,null,null,null,null,null,null,"労　200",null,null,null,null,null,null,null,null,null,null,null,null,null,null,null,"係\n\n員"]
[null,"消　　費　　税",null,null,null,null,null,null,null,null,null,null,null,null,null,null,null,null,null,null,null,null,null,null,null,null,null,null,null,null,null,null,null,null,null,"不課税",null,null,null,null,null,null,null,null,null,null,null,null,null,null,null,null,null,null,null,null,null,null,null,null,null,null,null,null,null,null,null,null,null,null,null,null,null,null,null,null,null,"外　300"]
[null,null,null,null,null,null,null,null,null,null,null,null,null,null,null,null,null,null,null,null,null,null,null,null,null,null,null,null,null,null,null,null,null,null,null,null,null,null,null,null,null,null,null,null,null,null,null,null,null,null,null,null,null,"既　支　払　額",null,null,null,null,null,null,null,null,null,null,null,null,null,null,null,null,null,null,null,null,null,null,null," 経　401-427"]
[]
[null,"合　　　　　　計",null,null,null,null,null,null,null,null,null,null,null,null,null,null,null,null,null,null,null,null,null,null,null,null,null,null,null,null,null,null,null,null,null,null,null,null,null,null,null,{"$f":"SUM(AP34:BA39)","v":0},null,null,null,null,null,null,null,null,null,null,null,"今 回 支 払 額"]
[]
[null,null,null,null,null,null,null,null,null,null,null,null,null,null,null,null,null,null,null,null,null,null,null,null,null,null,null,null,null,null,null,null,null,null,null,null,null,null,null,null,null,null,null,null,null,null,null,null,null,null,null,null,null,"契　約　残　額"]
[]
[null,null,null,null,null,"※課税仕入　9900に消費税額を必ず記入　課税区分①②は無記入"]
[null,null,null,null,null,"※非課税、不課税仕入　9900に消費税額0と記入　課税区分①のみ1と記入"]
[null,null,null,null,null,"※太線内に記入し、捺印のうえ提出願います。"]
[]
[null,"　　古久根建設株式会社　御中",null,null,null,null,null,null,null,null,null,null,null,null,null,null,null,null,null,null,null,null,null,null,null,null,null,null,null,null,null,null,null,null,null,null,null,"請　　求　　書",null,null,null,null,null,null,null,null,null,null,null,null,null,null,null,null,null,null,null,null,null,null,null,null,null,null,2,null,0,null,{"$f":"BQ1","v":0},null,{"$f":"BS1&\"\"","v":""},null,"年",null,{"$f":"BW1&\"\"","v":""},null,{"$f":"BY1&\"\"","v":""},null,"月",null,{"$f":"CC1&\"\"","v":""},null,{"$f":"CE1&\"\"","v":""},null,"日",null,null,null,null,null,null,null,null,"（控）"]
[]
[]
[null,null,null,null,null,"下記の通り請求致します。"]
[]
[null,"工事名\n部署名",null,null,null,null,null,null,null,null,{"$f":"K6","v":0},null,null,null,null,null,null,null,null,null,null,null,null,null,null,null,null,null,null,null,null,null,null,null,null,null,null,null,null,null,null,null,null,null,null,null,null,null,null,null,null,null,null,null,null,null,null,null,"住所",null,null,null,null,{"$f":"BL6","v":0},null,null,null,null,null,null,null,null,null,null,null,null,null,null,null,null,null,null,null,null,null,null,null,null,null,null,null,null,null,"役\n\n員"]
[]
[null,null,null,null,null,null,null,null,null,null,null,null,null,null,null,null,null,null,null,null,null,null,null,null,null,null,null,null,null,null,null,null,null,null,null,null,null,null,null,null,null,null,null,null,null,null,null,null,null,null,null,null,null,null,null,null,null,null,"社名",null,null,null,null,{"$f":"BL8","v":0}]
[]
[]
[null,null,null,null,null,null,null,null,null,null,null,null,null,null,null,null,null,null,null,null,null,null,null,null,null,null,null,null,null,null,null,null,null,null,null,null,null,null,null,null,null,null,null,null,null,null,null,null,null,null,null,null,null,null,null,null,null,null,"登録番号",null,null,null,null,"T",null,{"$f":"BN11&\"\"","v":""},null,{"$f":"BP11&\"\"","v":""},null,{"$f":"BR11&\"\"","v":""},null,{"$f":"BT11&\"\"","v":""},null,{"$f":"BV11&\"\"","v":""},null,{"$f":"BX11&\"\"","v":""},null,{"$f":"BZ11&\"\"","v":""},null,{"$f":"CB11&\"\"","v":""},null,{"$f":"CD11&\"\"","v":""},null,{"$f":"CF11&\"\"","v":""},null,{"$f":"CH11&\"\"","v":""},null,{"$f":"CJ11&\"\"","v":""},null,{"$f":"CL11&\"\"","v":""}]
[null,"勘定科目ｺｰﾄﾞ",null,null,null,null,null,null,null,null,"工事・部署ｺｰﾄﾞ",null,null,null,null,null,null,null,null,null,null,"工事枝番号",null,null,null,null,null,null,null,null,null,null,"取引先ｺｰﾄﾞ",null,null,null,null,null,null,null,null,null,null,null,null,"注文番号"]
[null,null,null,null,null,null,null,null,null,null,null,null,null,null,null,null,null,null,null,null,null,null,null,null,null,null,null,null,null,null,null,null,{"$f":"AG13&\"\"","v":""},null,{"$f":"AI13&\"\"","v":""},null,{"$f":"AK13&\"\"","v":""},null,{"$f":"AM13&\"\"","v":""},null,{"$f":"AO13&\"\"","v":""},null,{"$f":"AQ13&\"\"","v":""},null,null,{"$f":"AT13&\"\"","v":""},null,{"$f":"AV13&\"\"","v":""},null,{"$f":"AX13&\"\"","v":""},null,{"$f":"AZ13&\"\"","v":""},null,{"$f":"BB13&\"\"","v":""},null,{"$f":"BD13&\"\"","v":""},null,null,"TEL",null,null,null,null,{"$f":"BL13","v":0}]
[]
[]
[null,"内容\n（品質・形状・寸法）",null,null,null,null,null,null,null,null,null,null,null,null,null,null,null,null,null,null,null,null,null,null,null,"数量",null,null,null,null,"単位",null,null,null,null,"単価",null,null,null,null,null,"請求金額",null,null,null,null,null,null,null,null,null,null,null,"費目コード",null,null,null,null,null,null,null,"金額",null,null,null,null,null,null,null,null,null,null,null,null,null,null,"原価コード",null,null,null,null,null,"課税区分"]
[null,null,null,null,null,null,null,null,null,null,null,null,null,null,null,null,null,null,null,null,null,null,null,null,null,null,null,null,null,null,null,null,null,null,null,null,null,null,null,null,null,null,null,null,null,null,null,null,null,null,null,null,null,null,null,null,null,null,null,null,null,null,null,null,null,null,null,null,null,null,null,null,null,null,null,null,null,null,null,null,null,null,"①",null,null,null,null,"②"]
[null,{"$f":"B18","v":0},null,null,null,null,null,null,null,null,null,null,null,null,null,null,null,null,null,null,null,null,null,null,null,{"$f":"Z18","v":0},null,null,null,null,{"$f":"AE18&\"\"","v":""},null,null,null,null,{"$f":"AJ18","v":0},null,null,null,null,null,{"$f":"AP18","v":0}]
[]
[null,{"$f":"B20","v":0},null,null,null,null,null,null,null,null,null,null,null,null,null,null,null,null,null,null,null,null,null,null,null,{"$f":"Z20","v":0},null,null,null,null,{"$f":"AE20&\"\"","v":""},null,null,null,null,{"$f":"AJ20","v":0},null,null,null,null,null,{"$f":"AP20","v":0},null,null,null,null,null,null,null,null,null,null,null,null,null,null,null,null,null,null,null,null,null,null,null,null,null,null,null,null,null,null,null,null,null,null,null,null,null,null,null,null,null,null,null,null,null,null,null,null,null,null,null,"部\n\n長"]
[]
[null,{"$f":"B22","v":0},null,null,null,null,null,null,null,null,null,null,null,null,null,null,null,null,null,null,null,null,null,null,null,{"$f":"Z22","v":0},null,null,null,null,{"$f":"AE22&\"\"","v":""},null,null,null,null,{"$f":"AJ22","v":0},null,null,null,null,null,{"$f":"AP22","v":0}]
[]
[null,{"$f":"B24","v":0},null,null,null,null,null,null,null,null,null,null,null,null,null,null,null,null,null,null,null,null,null,null,null,{"$f":"Z24","v":0},null,null,null,null,{"$f":"AE24&\"\"","v":""},null,null,null,null,{"$f":"AJ24","v":0},null,null,null,null,null,{"$f":"AP24","v":0},null,null,null,null,null,null,null,null,null,null,null,null,null,null,null,null,null,null,null,null,null,null,null,null,null,null,null,null,null,null,null,null,null,null,null,null,null,null,null,null,null,null,null,null,null,null,null,null,null,null,null,"次\n\n長"]
[]
[null,{"$f":"B26","v":0},null,null,null,null,null,null,null,null,null,null,null,null,null,null,null,null,null,null,null,null,null,null,null,{"$f":"Z26","v":0},null,null,null,null,{"$f":"AE26&\"\"","v":""},null,null,null,null,{"$f":"AJ26","v":0},null,null,null,null,null,{"$f":"AP26","v":0}]
[]
[null,{"$f":"B28","v":0},null,null,null,null,null,null,null,null,null,null,null,null,null,null,null,null,null,null,null,null,null,null,null,{"$f":"Z28","v":0},null,null,null,null,{"$f":"AE28&\"\"","v":""},null,null,null,null,{"$f":"AJ28","v":0},null,null,null,null,null,{"$f":"AP28","v":0},null,null,null,null,null,null,null,null,null,null,null,null,null,null,null,null,null,null,null,null,null,null,null,null,null,null,null,null,null,null,null,null,null,null,null,null,null,null,null,null,null,null,null,null,null,null,null,null,null,null,null,"課\n\n長"]
[]
[null,{"$f":"B30","v":0},null,null,null,null,null,null,null,null,null,null,null,null,null,null,null,null,null,null,null,null,null,null,null,{"$f":"Z30","v":0},null,null,null,null,{"$f":"AE30&\"\"","v":""},null,null,null,null,{"$f":"AJ30","v":0},null,null,null,null,null,{"$f":"AP30","v":0}]
[]
[null,{"$f":"B32","v":0},null,null,null,null,null,null,null,null,null,null,null,null,null,null,null,null,null,null,null,null,null,null,null,{"$f":"Z32","v":0},null,null,null,null,{"$f":"AE32&\"\"","v":""},null,null,null,null,{"$f":"AJ32","v":0},null,null,null,null,null,{"$f":"AP32","v":0},null,null,null,null,null,null,null,null,null,null,null,9,null,9,null,0,null,0,null,null,null,null,null,null,null,null,null,null,null,null,null,null,null,null,null,null,null,null,null,null,null,null,null,null,null,null,null,null,null,null,null,"所\n\n長"]
[]
[null,"工　事　費　計",null,null,null,null,null,null,null,null,null,null,null,null,null,null,null,null,null,null,null,null,null,null,null,null,null,null,null,null,null,null,null,null,null,null,null,null,null,null,null,{"$f":"AP34","v":0},null,null,null,null,null,null,null,null,null,null,null,"合　　計"]
[null,null,null,null,null,null,null,null,null,null,null,null,null,null,null,null,null,null,null,null,null,null,null,null,null,null,null,null,null,null,null,null,null,null,null,null,null,null,null,null,null,null,null,null,null,null,null,null,null,null,null,null,null,null,null,null,null,null,null,null,null,null,null,null,null,null,null,null,null,null,null,null,null,null,null,null,null,"材　100"]
[null,null,null,null,null,null,null,null,null,null,null,null,null,null,null,null,null,null,null,null,null,null,null,null,null,null,null,null,null,null,null,null,null,null,null,null,null,null,null,null,null,null,null,null,null,null,null,null,null,null,null,null,null,"契　約　額",null,null,null,null,null,null,null,null,null,null,null,null,null,null,null,null,null,null,null,null,null,null,null,"労　200",null,null,null,null,null,null,null,null,null,null,null,null,null,null,null,"係\n\n員"]
[null,"消　　費　　税",null,null,null,null,null,null,null,null,null,null,null,null,null,null,null,null,null,null,null,null,null,null,null,null,null,null,null,null,null,null,null,null,null,{"$f":"AJ37","v":"不課税"},null,null,null,null,null,{"$f":"AP37","v":0},null,null,null,null,null,null,null,null,null,null,null,null,null,null,null,null,null,null,null,null,null,null,null,null,null,null,null,null,null,null,null,null,null,null,null,"外　300"]
[null,null,null,null,null,null,null,null,null,null,null,null,null,null,null,null,null,null,null,null,null,null,null,null,null,null,null,null,null,null,null,null,null,null,null,null,null,null,null,null,null,null,null,null,null,null,null,null,null,null,null,null,null,"既　支　払　額",null,null,null,null,null,null,null,null,null,null,null,null,null,null,null,null,null,null,null,null,null,null,null," 経　401-427"]
[]
[null,"合　　　　　　計",null,null,null,null,null,null,null,null,null,null,null,null,null,null,null,null,null,null,null,null,null,null,null,null,null,null,null,null,null,null,null,null,null,null,null,null,null,null,null,{"$f":"AP40","v":0},null,null,null,null,null,null,null,null,null,null,null,"今 回 支 払 額"]
[]
[null,null,null,null,null,null,null,null,null,null,null,null,null,null,null,null,null,null,null,null,null,null,null,null,null,null,null,null,null,null,null,null,null,null,null,null,null,null,null,null,null,null,null,null,null,null,null,null,null,null,null,null,null,"契　約　残　額"]
[]
[null,null,null,null,null,"※課税仕入　9900に消費税額を必ず記入　課税区分①②は無記入"]
[null,null,null,null,null,"※非課税、不課税仕入　9900に消費税額0と記入　課税区分①のみ1と記入"]
[null,null,null,null,null,"※太線内に記入し、捺印のうえ提出願います。"]